[Event "ESTCC-50 2025"]
[Site "Swidnica"]
[Date "2025.04.08"]
[Round "4.1"]
[White "Laszewicz, Pawel"]
[Black "Emms, John M"]
[Result "1/2-1/2"]
[Annotator "RC"]
[ECO "C44"]
[WhiteElo "2011"]
[BlackElo "2411"]
[PlyCount "34"]
[EventDate "2025.04.05"]
[EventType "team-tourn"]
[EventCountry "POL"]
[SourceTitle "playchess.com"]
[Source "ChessBase"]
[SourceQuality "1"]
[WhiteTeam "Poland"]
[BlackTeam "England"]
[WhiteTeamCountry "POL"]
[BlackTeamCountry "ENG"]
[TimeControl "40/5400+30:1800+30"]

1. e4 {[%emt 0:00:02]} e5 {[%emt 0:01:29]} 2. Nf3 {[%emt 0:00:04]} Nc6 {[%emt 0:00:06]} 3. d4 {[%emt 0:00:22]} exd4 {[%emt 0:00:05]} 4. Nxd4 {[%emt 0:00:03]} Nf6 {[%emt 0:01:01]} 5. Nxc6 {[%emt 0:01:22]} bxc6 {[%emt 0:00:05]} 6. Bd3 {[%emt 0:00:20]} d5 {[%emt 0:00:23]} 7. Qe2 {[%emt 0:00:25]} dxe4 {[%emt 0:32:18]} 8. Nc3 {[%emt 0:00:51]} Bb4 {[%emt 0:11:13]} 9. Bxe4 {[%emt 0:00:47]} Bxc3+ {[%emt 0:15:01]} 10. bxc3 {[%emt 0:00:26]} Nxe4 {[%emt 0:00:22]} 11. Qxe4+ {[%emt 0:00:16]} Qe7 {[%emt 0:00:17]} 12. Qxe7+ {[%emt 0:01:01]} Kxe7 {[%emt 0:00:19]} 13. Bf4 {[%emt 0:02:44]} Rb8 {[%emt 0:11:46]} 14. O-O-O {[%emt 0:15:07]} Rb7 {[%emt 0:02:44]} 15. Rhe1+ {[%emt 0:21:37]} Be6 {[%emt 0:00:12]} 16. Re3 {[%emt 0:00:39]} Rhb8 {[%emt 0:03:25]} 17. Rd4 {[%emt 0:03:36]} c5 {[%emt 0:06:40]} 1/2-1/2

[Event "ESTCC-50 2025"]
[Site "Swidnica"]
[Date "2025.04.08"]
[Round "4.2"]
[White "Flear, Glenn C"]
[Black "Machlowski, Slawomir"]
[Result "1-0"]
[Annotator "RC"]
[ECO "A40"]
[WhiteElo "2366"]
[BlackElo "1963"]
[PlyCount "38"]
[EventDate "2025.04.05"]
[EventType "team-tourn"]
[EventCountry "POL"]
[SourceTitle "playchess.com"]
[Source "ChessBase"]
[SourceQuality "1"]
[WhiteTeam "England"]
[BlackTeam "Czech Republic"]
[WhiteTeamCountry "ENG"]
[BlackTeamCountry "CZE"]
[TimeControl "40/5400+30:1800+30"]

1. d4 {[%emt 0:00:14]} e6 2. c4 {[%emt 0:00:17]} b6 {[%emt 0:00:23]} 3. a3 {[%emt 0:00:57]} Bb7 {[%emt 0:00:22]} 4. Nc3 {[%emt 0:00:11]} f5 {[%emt 0:01:11]} 5. Bf4 {[%emt 0:00:52]} Nf6 {[%emt 0:00:54]} 6. e3 {[%emt 0:00:46]} Be7 {[%emt 0:01:14]} 7. h4 {[%emt 0:00:57]} d6 {[%emt 0:06:41]} 8. Nf3 {[%emt 0:02:15]} h6 {[%emt 0:03:33]} 9. Bd3 {[%emt 0:10:01]} Ne4 {[%emt 0:04:01]} 10. Bxe4 {[%emt 0:03:32]} Bxe4 {[%emt 0:01:59]} 11. Nxe4 {[%emt 0:01:19]} fxe4 {[%emt 0:00:07]} 12. Nd2 {[%emt 0:00:12]} d5 {[%emt 0:01:22]} 13. Qg4 {[%emt 0:02:31]} Kf7 {[%emt 0:01:50]} 14. f3 {[%emt 0:01:04]} Nd7 {[%emt 0:04:07]} 15. cxd5 {[%emt 0:06:06]} exd5 {[%emt 0:00:39]} 16. Qh5+ {[%emt 0:03:31]} Kf8 {[%emt 0:00:23]} 17. Qxd5 {[%emt 0:01:05]} exf3 {[%emt 0:00:44]} 18. Qxf3 {[%emt 0:11:53]} Bxh4+ {[%emt 0:03:07]} 19. Rxh4 {[%emt 0:01:51]} Ke8 1-0

[Event "ESTCC-50 2025"]
[Site "Swidnica"]
[Date "2025.04.08"]
[Round "4.3"]
[White "Kruczynski, Marek"]
[Black "Davies, Nigel R"]
[Result "0-1"]
[Annotator "RC"]
[ECO "B23"]
[WhiteElo "1862"]
[BlackElo "2309"]
[PlyCount "82"]
[EventDate "2025.04.05"]
[EventType "team-tourn"]
[EventCountry "POL"]
[SourceTitle "playchess.com"]
[Source "ChessBase"]
[SourceQuality "1"]
[WhiteTeam "Poland"]
[BlackTeam "England"]
[WhiteTeamCountry "POL"]
[BlackTeamCountry "ENG"]
[TimeControl "40/5400+30:1800+30"]

1. e4 {[%emt 0:00:07]} c5 {[%emt 0:00:16]} 2. Nc3 {[%emt 0:00:14]} e6 {[%emt 0:00:33]} 3. Nge2 {[%emt 0:00:34]} a6 {[%emt 0:00:11]} 4. g3 {[%emt 0:01:37]} Nc6 {[%emt 0:01:55]} 5. Bg2 {[%emt 0:00:20]} d6 {[%emt 0:02:37]} 6. O-O {[%emt 0:01:56]} Nf6 {[%emt 0:00:34]} 7. h3 {[%emt 0:04:19]} Be7 {[%emt 0:00:45]} 8. g4 {[%emt 0:03:23]} h6 {[%emt 0:03:39]} 9. d3 {[%emt 0:07:46]} g5 {[%emt 0:03:43]} 10. Ng3 {[%emt 0:04:47]} Ne5 {[%emt 0:12:18]} 11. d4 {[%emt 0:11:34]} cxd4 {[%emt 0:02:53]} 12. Qxd4 {[%emt 0:00:26]} Ng6 {[%emt 0:03:35]} 13. Rd1 {[%emt 0:21:05]} Qc7 {[%emt 0:02:13]} 14. Be3 {[%emt 0:01:37]} Bd7 {[%emt 0:01:09]} 15. Qb6 {[%emt 0:02:39]} Qxb6 {[%emt 0:02:47]} 16. Bxb6 {[%emt 0:00:10]} h5 {[%emt 0:01:22]} 17. f3 {[%emt 0:00:37]} Rc8 {[%emt 0:00:53]} 18. Rd2 {[%emt 0:03:26]} Ne5 {[%emt 0:00:45]} 19. Be3 {[%emt 0:11:00]} Nc4 {[%emt 0:00:34]} 20. Bxg5 {[%emt 0:00:27]} hxg4 {[%emt 0:08:16]} 21. hxg4 {[%emt 0:05:14]} Nxg4 {[%emt 0:00:53]} 22. Bxe7 {[%emt 0:01:55]} Kxe7 {[%emt 0:00:09]} 23. Re2 {[%emt 0:02:04]} Nge3 {[%emt 0:00:50]} 24. Nd1 {[%emt 0:05:58]} Nxd1 {[%emt 0:07:58]} 25. Rxd1 {[%emt 0:00:11]} Rhg8 {[%emt 0:00:07]} 26. Nf1 {[%emt 0:03:35]} Nxb2 {[%emt 0:00:45]} 27. Rb1 {[%emt 0:00:31]} Bb5 {[%emt 0:01:38]} 28. Rf2 {[%emt 0:00:14]} Na4 {[%emt 0:00:17]} 29. Ne3 {[%emt 0:01:52]} Nc3 {[%emt 0:00:11]} 30. Rb2 {[%emt 0:02:27]} Rc5 {[%emt 0:02:36]} 31. Rb3 {[%emt 0:00:33]} Bc6 {[%emt 0:02:58]} 32. a3 {[%emt 0:01:43]} b5 {[%emt 0:00:15]} 33. Kf1 {[%emt 0:00:26]} d5 {[%emt 0:02:30]} 34. e5 {[%emt 0:00:52]} d4 {[%emt 0:03:41]} 35. Ng4 {[%emt 0:00:24]} Nd1 {[%emt 0:01:34]} 36. Rd2 {[%emt 0:00:31]} Rxg4 {[%emt 0:01:48]} 37. Rxd1 {[%emt 0:00:46]} Rf4 {[%emt 0:00:35]} 38. Rd2 {[%emt 0:00:21]} Rxe5 {[%emt 0:01:38]} 39. Rbd3 {[%emt 0:00:54]} Rc5 {[%emt 0:00:47]} 40. Rxd4 {[%emt 0:00:00]} Rxd4 {[%emt 0:00:00]} 41. Rxd4 {[%emt 0:00:36]} Rxc2 {[%emt 0:00:17]} 0-1

[Event "ESTCC-50 2025"]
[Site "Swidnica"]
[Date "2025.04.08"]
[Round "4.5"]
[White "Rogowski, Jaroslaw"]
[Black "Zych, Marek"]
[Result "1/2-1/2"]
[Annotator "NA RC"]
[ECO "D97"]
[WhiteElo "2050"]
[BlackElo "1942"]
[PlyCount "45"]
[EventDate "2025.04.05"]
[EventType "team-tourn"]
[EventCountry "POL"]
[SourceTitle "playchess.com"]
[Source "ChessBase"]
[SourceQuality "1"]
[WhiteTeam "Poland"]
[BlackTeam "Poland"]
[WhiteTeamCountry "POL"]
[BlackTeamCountry "POL"]
[TimeControl "40/5400+30:1800+30"]

1. Nf3 {[%emt 0:00:06]} Nf6 {[%emt 0:00:40]} 2. d4 {[%emt 0:00:05]} g6 {[%emt 0:00:10]} 3. c4 {[%emt 0:00:07]} Bg7 {[%emt 0:00:22]} 4. Nc3 {[%emt 0:00:12]} d5 {[%emt 0:01:45]} 5. Qb3 {[%emt 0:01:04]} dxc4 {[%emt 0:00:16]} 6. Qxc4 {[%emt 0:00:05]} O-O {[%emt 0:00:13]} 7. e4 {[%emt 0:00:50]} Na6 {[%emt 0:00:50]} 8. Be2 {[%emt 0:44:40]} c5 {[%emt 0:00:51]} 9. d5 {[%emt 0:03:30]} e6 {[%emt 0:01:07]} 10. O-O {[%emt 0:05:03]} exd5 {[%emt 0:00:31]} 11. exd5 {[%emt 0:00:25]} Nb4 {[%emt 0:03:39]} 12. Bg5 {[%emt 0:01:33]} h6 {[%emt 0:50:50]} 13. Bxf6 {[%emt 0:01:17]} Bxf6 {[%emt 0:03:42]} 14. Qxc5 {[%emt 0:01:48]} Qb6 {[%emt 0:03:33]} 15. Qxb6 {[%emt 0:02:29]} axb6 {[%emt 0:00:03]} 16. Bc4 {[%emt 0:02:21]} Bf5 {[%emt 0:00:25]} 17. Rfd1 {[%emt 0:13:37]} Rfc8 {[%emt 0:01:26]} 18. Bf1 {[%emt 0:03:38]} Bxc3 {[%emt 0:05:29]} 19. bxc3 {[%emt 0:00:02]} Rxc3 {[%emt 0:00:13]} 20. d6 {[%emt 0:03:50]} Nc6 {[%emt 0:00:26]} 21. Rd2 {[%emt 0:04:02]} Rd8 {[%emt 0:03:25]} 22. Re1 {[%emt 0:01:06]} Rc2 {[%emt 0:02:33]} 23. Red1 {[%emt 0:03:37]} 1/2-1/2

[Event "ESTCC-50 2025"]
[Site "Swidnica"]
[Date "2025.04.08"]
[Round "4.6"]
[White "Szmyd, Marek"]
[Black "Ograbek, Grzegorz"]
[Result "1-0"]
[Annotator "NA RC"]
[ECO "C00"]
[WhiteElo "1900"]
[BlackElo "2068"]
[PlyCount "71"]
[EventDate "2025.04.05"]
[EventType "team-tourn"]
[EventCountry "POL"]
[SourceTitle "playchess.com"]
[Source "ChessBase"]
[SourceQuality "1"]
[WhiteTeam "Poland"]
[BlackTeam "Poland"]
[WhiteTeamCountry "POL"]
[BlackTeamCountry "POL"]
[TimeControl "40/5400+30:1800+30"]

1. e4 {[%emt 0:00:04]} e6 {[%emt 0:00:22]} 2. c4 {[%emt 0:01:01]} d5 {[%emt 0:00:26]} 3. cxd5 {[%emt 0:00:12]} exd5 {[%emt 0:00:07]} 4. exd5 {[%emt 0:00:09]} Nf6 {[%emt 0:00:13]} 5. Nf3 {[%emt 0:02:47]} Nxd5 {[%emt 0:00:25]} 6. d4 {[%emt 0:06:09]} Be7 {[%emt 0:02:00]} 7. Nc3 {[%emt 0:05:24]} c6 {[%emt 0:05:42]} 8. Bc4 {[%emt 0:03:18]} O-O {[%emt 0:39:53]} 9. Bxd5 {[%emt 0:09:38]} cxd5 {[%emt 0:00:05]} 10. Qb3 {[%emt 0:05:05]} Nc6 {[%emt 0:00:49]} 11. O-O {[%emt 0:09:42]} Be6 {[%emt 0:06:44]} 12. Qxb7 {[%emt 0:03:10]} Nb4 {[%emt 0:03:44]} 13. Bf4 {[%emt 0:12:36]} Nd3 {[%emt 0:06:45]} 14. Bg3 {[%emt 0:02:43]} Bd6 {[%emt 0:00:22]} 15. Qb5 {[%emt 0:10:54]} Nf4 {[%emt 0:00:59]} 16. Ne5 {[%emt 0:01:44]} Bxe5 {[%emt 0:19:25]} 17. dxe5 {[%emt 0:00:06]} Ng6 {[%emt 0:03:09]} 18. Rfd1 {[%emt 0:02:02]} Rb8 {[%emt 0:01:13]} 19. Qe2 {[%emt 0:01:39]} h5 {[%emt 0:01:51]} 20. Qxh5 {[%emt 0:07:50]} Rxb2 {[%emt 0:00:22]} 21. Ne2 {[%emt 0:01:12]} Qc8 {[%emt 0:00:34]} 22. h3 {[%emt 0:02:12]} Qa6 {[%emt 0:02:04]} 23. Nd4 {[%emt 0:00:46]} Ne7 {[%emt 0:00:29]} 24. Bh4 {[%emt 0:04:09]} Ng6 {[%emt 0:02:11]} 25. Bg3 {[%emt 0:02:18]} Ne7 {[%emt 0:01:45]} 26. Nf3 {[%emt 0:00:24]} Bf5 {[%emt 0:00:29]} 27. Bh4 {[%emt 0:00:43]} Bg6 {[%emt 0:00:14]} 28. Qg4 {[%emt 0:00:48]} Nf5 {[%emt 0:00:15]} 29. Rxd5 {[%emt 0:01:21]} Rfb8 {[%emt 0:00:26]} 30. Rad1 {[%emt 0:00:55]} Rb1 {[%emt 0:01:25]} 31. Rxb1 {[%emt 0:00:31]} Rxb1+ {[%emt 0:00:06]} 32. Kh2 {[%emt 0:00:02]} Rb8 {[%emt 0:00:56]} 33. Qg5 {[%emt 0:00:37]} Qxa2 {[%emt 0:00:59]} 34. Rd8+ {[%emt 0:00:22]} Rxd8 {[%emt 0:00:01]} 35. Qxd8+ {[%emt 0:00:08]} Kh7 {[%emt 0:00:09]} 36. Ng5+ 1-0

[Event "ESTCC-50 2025"]
[Site "Swidnica"]
[Date "2025.04.08"]
[Round "4.7"]
[White "Czyz, Andrzej"]
[Black "Stec, Czeslaw"]
[Result "1/2-1/2"]
[Annotator "NA RC"]
[ECO "D30"]
[WhiteElo "1985"]
[BlackElo "1820"]
[PlyCount "57"]
[EventDate "2025.04.05"]
[EventType "team-tourn"]
[EventCountry "POL"]
[SourceTitle "playchess.com"]
[Source "ChessBase"]
[SourceQuality "1"]
[WhiteTeam "Poland"]
[BlackTeam "Poland"]
[WhiteTeamCountry "POL"]
[BlackTeamCountry "POL"]
[TimeControl "40/5400+30:1800+30"]

1. d4 {[%emt 0:00:04]} d5 {[%emt 0:00:10]} 2. c4 {[%emt 0:00:11]} e6 {[%emt 0:00:10]} 3. Nf3 {[%emt 0:00:34]} c5 {[%emt 0:00:30]} 4. cxd5 {[%emt 0:04:09]} exd5 {[%emt 0:00:18]} 5. g3 {[%emt 0:00:23]} Nc6 {[%emt 0:00:15]} 6. Bg2 {[%emt 0:00:31]} Nf6 {[%emt 0:03:45]} 7. Nc3 {[%emt 0:01:58]} cxd4 {[%emt 0:00:51]} 8. Nxd4 {[%emt 0:01:20]} Bc5 {[%emt 0:01:57]} 9. Nxc6 {[%emt 0:04:23]} bxc6 {[%emt 0:00:11]} 10. O-O {[%emt 0:00:22]} O-O {[%emt 0:00:17]} 11. Qc2 {[%emt 0:01:05]} Bb6 {[%emt 0:00:20]} 12. Bg5 {[%emt 0:01:26]} h6 {[%emt 0:00:15]} 13. Bxf6 {[%emt 0:02:05]} Qxf6 {[%emt 0:00:12]} 14. e3 {[%emt 0:00:36]} Bf5 {[%emt 0:00:40]} 15. Qa4 {[%emt 0:01:30]} Rac8 {[%emt 0:01:14]} 16. Rac1 {[%emt 0:01:02]} d4 {[%emt 0:05:04]} 17. exd4 {[%emt 0:10:41]} Bxd4 {[%emt 0:01:37]} 18. Rcd1 {[%emt 0:22:00]} Bb6 {[%emt 0:12:11]} 19. Qf4 {[%emt 0:03:57]} Qg6 {[%emt 0:03:28]} 20. Be4 {[%emt 0:03:25]} Bxe4 {[%emt 0:00:41]} 21. Nxe4 {[%emt 0:01:28]} Rfe8 {[%emt 0:07:46]} 22. Rfe1 {[%emt 0:03:29]} Bc7 {[%emt 0:04:12]} 23. Qf3 {[%emt 0:01:04]} Re7 {[%emt 0:00:44]} 24. Nc3 {[%emt 0:01:59]} Rce8 {[%emt 0:00:15]} 25. Rxe7 {[%emt 0:01:33]} Rxe7 {[%emt 0:00:12]} 26. Rd2 {[%emt 0:06:40]} Ba5 {[%emt 0:08:20]} 27. Re2 {[%emt 0:03:42]} Rxe2 {[%emt 0:01:01]} 28. Qxe2 {[%emt 0:00:39]} Bxc3 {[%emt 0:01:55]} 29. bxc3 {[%emt 0:00:42]} 1/2-1/2

[Event "ESTCC-50 2025"]
[Site "Swidnica"]
[Date "2025.04.08"]
[Round "4.8"]
[White "Zaremba, Artur"]
[Black "Wielosz, Jaroslaw"]
[Result "*"]
[Annotator "RC"]
[ECO "B00"]
[WhiteElo "2133"]
[BlackElo "1939"]
[PlyCount "128"]
[EventDate "2025.04.05"]
[EventType "team-tourn"]
[EventCountry "POL"]
[SourceTitle "playchess.com"]
[Source "ChessBase"]
[SourceQuality "1"]
[WhiteTeam "Poland"]
[BlackTeam "Poland"]
[WhiteTeamCountry "POL"]
[BlackTeamCountry "POL"]
[TimeControl "40/5400+30:1800+30"]

1. e4 {[%emt 0:00:13]} e5 {[%emt 0:00:18]} 2. Nf3 {[%emt 0:00:18]} Nc6 {[%emt 0:00:14]} 3. Bc4 {[%emt 0:00:48]} Bc5 {[%emt 0:00:25]} 4. O-O {[%emt 0:01:10]} Nf6 {[%emt 0:00:17]} 5. Nc3 {[%emt 0:00:46]} d6 {[%emt 0:00:43]} 6. h3 {[%emt 0:00:14]} h6 {[%emt 0:00:57]} 7. d3 {[%emt 0:00:12]} Na5 {[%emt 0:05:36]} 8. Bb5+ {[%emt 0:07:38]} c6 {[%emt 0:00:40]} 9. Ba4 {[%emt 0:00:02]} b5 {[%emt 0:01:15]} 10. Bb3 {[%emt 0:00:09]} Nxb3 {[%emt 0:01:25]} 11. axb3 {[%emt 0:00:14]} Bb6 {[%emt 0:12:56]} 12. d4 {[%emt 0:01:14]} Bc7 {[%emt 0:08:59]} 13. b4 {[%emt 0:03:24]} O-O {[%emt 0:02:11]} 14. Be3 {[%emt 0:01:19]} a5 {[%emt 0:07:05]} 15. dxe5 {[%emt 0:01:19]} dxe5 {[%emt 0:01:59]} 16. Bc5 {[%emt 0:00:14]} Re8 {[%emt 0:04:22]} 17. bxa5 {[%emt 0:00:37]} Nd7 {[%emt 0:06:06]} 18. Bd6 {[%emt 0:04:07]} Rxa5 {[%emt 0:03:05]} 19. Rxa5 {[%emt 0:05:24]} Bxa5 {[%emt 0:00:13]} 20. b4 {[%emt 0:00:17]} Bb6 {[%emt 0:03:51]} 21. Qd3 {[%emt 0:01:26]} Qf6 {[%emt 0:02:49]} 22. Rd1 {[%emt 0:01:09]} Re6 {[%emt 0:05:44]} 23. Ne2 {[%emt 0:01:40]} g6 {[%emt 0:11:07]} 24. Nc1 {[%emt 0:02:11]} Re8 {[%emt 0:05:10]} 25. c4 {[%emt 0:01:13]} c5 {[%emt 0:06:09]} 26. bxc5 {[%emt 0:07:45]} Nxc5 {[%emt 0:00:59]} 27. Bxc5 {[%emt 0:00:24]} Bxc5 {[%emt 0:00:13]} 28. cxb5 {[%emt 0:00:12]} Qb6 {[%emt 0:01:27]} 29. Rd2 {[%emt 0:01:19]} Bb4 {[%emt 0:00:46]} 30. Rc2 {[%emt 0:01:01]} Rd8 {[%emt 0:01:40]} 31. Qc4 {[%emt 0:00:26]} Qd6 {[%emt 0:01:41]} 32. Na2 {[%emt 0:01:48]} Qd1+ {[%emt 0:00:40]} 33. Kh2 {[%emt 0:00:12]} Be6 {[%emt 0:01:12]} 34. Qe2 {[%emt 0:00:35]} Qxe2 {[%emt 0:00:51]} 35. Rxe2 {[%emt 0:00:07]} Bd6 {[%emt 0:01:50]} 36. Rd2 {[%emt 0:00:56]} Bc7 {[%emt 0:01:21]} 37. Rxd8+ {[%emt 0:00:23]} Bxd8 {[%emt 0:00:10]} 38. Nb4 {[%emt 0:00:33]} Bc4 {[%emt 0:00:53]} 39. Nc6 {[%emt 0:01:06]} Bb6 {[%emt 0:01:16]} 40. Ncxe5 {[%emt 0:00:00]} Bxb5 {[%emt 0:00:00]} 41. Ng4 {[%emt 0:15:29]} Kg7 {[%emt 0:05:30]} 42. Kg1 {[%emt 0:03:48]} Bc6 {[%emt 0:04:03]} 43. Nd2 {[%emt 0:01:20]} Bd4 {[%emt 0:01:20]} 44. Ne3 {[%emt 0:03:58]} Bc3 {[%emt 0:04:48]} 45. Nef1 {[%emt 0:03:05]} Bd4 {[%emt 0:00:37]} 46. g3 {[%emt 0:01:06]} Kf6 {[%emt 0:01:16]} 47. Kg2 {[%emt 0:00:42]} Ke6 {[%emt 0:01:08]} 48. f3 {[%emt 0:00:23]} f5 {[%emt 0:01:27]} 49. exf5+ {[%emt 0:00:27]} Kxf5 {[%emt 0:00:32]} 50. Nc4 {[%emt 0:00:14]} Kf6 {[%emt 0:01:16]} 51. Nce3 {[%emt 0:00:17]} Kg7 {[%emt 0:01:31]} 52. h4 {[%emt 0:00:54]} Bb7 {[%emt 0:01:09]} 53. Ng4 {[%emt 0:00:55]} Bc6 {[%emt 0:00:34]} 54. Nd2 {[%emt 0:00:38]} Bd5 {[%emt 0:00:39]} 55. Nf2 {[%emt 0:00:20]} Bc6 {[%emt 0:01:11]} 56. Nde4 {[%emt 0:00:15]} Bd5 {[%emt 0:00:47]} 57. g4 {[%emt 0:01:00]} Be5 {[%emt 0:01:18]} 58. Ng3 {[%emt 0:00:19]} Bxg3 {[%emt 0:02:31]} 59. Kxg3 {[%emt 0:00:07]} Bc6 {[%emt 0:00:44]} 60. Kf4 {[%emt 0:00:16]} Bd5 {[%emt 0:00:49]} 61. Ne4 {[%emt 0:00:34]} Bc6 {[%emt 0:00:28]} 62. Ke5 {[%emt 0:00:22]} Bd7 {[%emt 0:00:51]} 63. Nf6 {[%emt 0:00:16]} Bb5 {[%emt 0:00:27]} 64. h5 {[%emt 0:00:16]} g5 {[%emt 0:01:02]} *

[Event "ESTCC-50 2025"]
[Site "Swidnica"]
[Date "2025.04.08"]
[Round "4.9"]
[White "Buckley, Graeme N"]
[Black "Lalic, Susan K"]
[Result "1/2-1/2"]
[Annotator "RC"]
[ECO "A43"]
[WhiteElo "2268"]
[BlackElo "2227"]
[PlyCount "21"]
[EventDate "2025.04.05"]
[EventType "team-tourn"]
[EventCountry "POL"]
[SourceTitle "playchess.com"]
[Source "ChessBase"]
[SourceQuality "1"]
[WhiteTeam "England"]
[BlackTeam "England"]
[WhiteTeamCountry "ENG"]
[BlackTeamCountry "ENG"]
[TimeControl "40/5400+30:1800+30"]

1. Nf3 {[%emt 0:00:03]} Nf6 {[%emt 0:00:03]} 2. d4 {[%emt 0:00:12]} c5 {[%emt 0:01:28]} 3. d5 {[%emt 0:00:31]} d6 {[%emt 0:01:25]} 4. c4 {[%emt 0:00:37]} g6 {[%emt 0:00:28]} 5. Nc3 {[%emt 0:00:25]} Bg7 {[%emt 0:00:19]} 6. e4 {[%emt 0:00:35]} O-O {[%emt 0:00:38]} 7. Be2 {[%emt 0:00:27]} a6 {[%emt 0:02:02]} 8. a4 {[%emt 0:00:54]} a5 {[%emt 0:00:21]} 9. O-O {[%emt 0:05:03]} Na6 {[%emt 0:01:12]} 10. h3 {[%emt 0:03:41]} Nb4 {[%emt 0:03:16]} 11. Bf4 {[%emt 0:00:18]} 1/2-1/2

[Event "ESTCC-50 2025"]
[Site "Swidnica"]
[Date "2025.04.08"]
[Round "4.10"]
[White "Lauterbach, Ingrid"]
[Black "Dickenson, Neil F"]
[Result "0-1"]
[Annotator "RC"]
[ECO "A05"]
[WhiteElo "1998"]
[BlackElo "2250"]
[PlyCount "94"]
[EventDate "2025.04.05"]
[EventType "team-tourn"]
[EventCountry "POL"]
[SourceTitle "playchess.com"]
[Source "ChessBase"]
[SourceQuality "1"]
[WhiteTeam "England"]
[BlackTeam "England"]
[WhiteTeamCountry "ENG"]
[BlackTeamCountry "ENG"]
[TimeControl "40/5400+30:1800+30"]

1. Nf3 {[%emt 0:00:03]} Nf6 {[%emt 0:00:21]} 2. b3 {[%emt 0:01:09]} d6 {[%emt 0:01:17]} 3. d4 {[%emt 0:00:34]} g6 {[%emt 0:00:33]} 4. Bb2 {[%emt 0:00:25]} Bg7 {[%emt 0:00:06]} 5. Nbd2 {[%emt 0:00:37]} O-O {[%emt 0:01:34]} 6. e4 {[%emt 0:00:15]} Nc6 {[%emt 0:04:27]} 7. d5 {[%emt 0:06:43]} Nb8 {[%emt 0:00:07]} 8. c4 {[%emt 0:09:19]} e6 {[%emt 0:02:28]} 9. dxe6 {[%emt 0:07:56]} Bxe6 {[%emt 0:00:19]} 10. Qc2 {[%emt 0:00:19]} Nc6 {[%emt 0:01:13]} 11. Be2 {[%emt 0:01:17]} Nh5 {[%emt 0:08:51]} 12. Bxg7 {[%emt 0:00:36]} Kxg7 {[%emt 0:00:05]} 13. Qc3+ {[%emt 0:00:32]} Qf6 {[%emt 0:00:31]} 14. Qxf6+ {[%emt 0:01:26]} Nxf6 {[%emt 0:00:38]} 15. O-O {[%emt 0:00:26]} Rfe8 {[%emt 0:02:04]} 16. a3 {[%emt 0:04:00]} Bg4 {[%emt 0:00:43]} 17. h3 {[%emt 0:04:50]} Nxe4 {[%emt 0:08:13]} 18. Nxe4 {[%emt 0:13:45]} Rxe4 {[%emt 0:00:07]} 19. Bd1 {[%emt 0:00:19]} Bd7 {[%emt 0:00:40]} 20. Nd2 {[%emt 0:01:27]} Re7 {[%emt 0:00:29]} 21. Bf3 {[%emt 0:00:20]} Rae8 {[%emt 0:01:03]} 22. b4 {[%emt 0:01:23]} b6 {[%emt 0:01:45]} 23. c5 {[%emt 0:01:45]} dxc5 {[%emt 0:01:08]} 24. bxc5 {[%emt 0:00:23]} Nd4 {[%emt 0:01:13]} 25. cxb6 {[%emt 0:03:10]} axb6 {[%emt 0:00:16]} 26. Bd5 {[%emt 0:03:27]} Re5 {[%emt 0:04:46]} 27. Bb7 {[%emt 0:04:03]} b5 {[%emt 0:04:43]} 28. Nf3 {[%emt 0:04:55]} Nxf3+ {[%emt 0:00:22]} 29. Bxf3 {[%emt 0:00:05]} c5 {[%emt 0:01:40]} 30. Rfd1 {[%emt 0:02:44]} R8e7 {[%emt 0:00:50]} 31. Rac1 {[%emt 0:02:42]} Be8 {[%emt 0:01:50]} 32. Bd5 {[%emt 0:03:35]} Rc7 {[%emt 0:02:02]} 33. Rc3 {[%emt 0:02:17]} c4 {[%emt 0:02:18]} 34. f4 {[%emt 0:03:39]} Rf5 {[%emt 0:02:43]} 35. g3 {[%emt 0:02:09]} Rd7 {[%emt 0:02:16]} 36. Bf3 {[%emt 0:00:58]} Rxd1+ {[%emt 0:00:30]} 37. Bxd1 {[%emt 0:00:04]} Rd5 {[%emt 0:00:39]} 38. Be2 {[%emt 0:01:11]} Bd7 {[%emt 0:07:24]} 39. h4 {[%emt 0:04:16]} Rd2 {[%emt 0:00:40]} 40. Kf1 {[%emt 0:00:00]} Kf6 {[%emt 0:00:00]} 41. Ke1 {[%emt 0:03:10]} Ra2 {[%emt 0:04:31]} 42. Re3 {[%emt 0:03:49]} h5 {[%emt 0:01:25]} 43. Bf3 {[%emt 0:07:43]} Rb2 {[%emt 0:02:26]} 44. Bb7 {[%emt 0:08:17]} Bf5 {[%emt 0:01:39]} 45. Bc6 {[%emt 0:00:32]} Bd3 {[%emt 0:02:43]} 46. Kd1 {[%emt 0:02:00]} Rb3 {[%emt 0:02:07]} 47. Kd2 {[%emt 0:00:50]} c3+ {[%emt 0:05:27]} 0-1

[Event "ESTCC-50 2025"]
[Site "Swidnica"]
[Date "2025.04.08"]
[Round "4.11"]
[White "Duncan, Chris R"]
[Black "Regan, Natasha K"]
[Result "1-0"]
[Annotator "RC"]
[ECO "A80"]
[WhiteElo "2178"]
[BlackElo "2056"]
[PlyCount "73"]
[EventDate "2025.04.05"]
[EventType "team-tourn"]
[EventCountry "POL"]
[SourceTitle "playchess.com"]
[Source "ChessBase"]
[SourceQuality "1"]
[WhiteTeam "England"]
[BlackTeam "England"]
[WhiteTeamCountry "ENG"]
[BlackTeamCountry "ENG"]
[TimeControl "40/5400+30:1800+30"]

1. d4 {[%emt 0:01:48]} f5 {[%emt 0:00:49]} 2. Nc3 {[%emt 0:00:32]} Nf6 {[%emt 0:00:11]} 3. Bg5 {[%emt 0:00:08]} d5 {[%emt 0:00:20]} 4. e3 {[%emt 0:00:22]} e6 {[%emt 0:00:31]} 5. Nf3 {[%emt 0:00:09]} c5 {[%emt 0:01:24]} 6. Bd3 {[%emt 0:01:22]} Nc6 {[%emt 0:02:12]} 7. O-O {[%emt 0:17:11]} Be7 {[%emt 0:04:04]} 8. Bb5 {[%emt 0:09:07]} O-O {[%emt 0:07:04]} 9. Ne2 {[%emt 0:00:51]} c4 {[%emt 0:03:45]} 10. c3 {[%emt 0:06:12]} Bd7 {[%emt 0:03:43]} 11. b3 {[%emt 0:03:49]} cxb3 {[%emt 0:08:53]} 12. axb3 {[%emt 0:00:07]} h6 {[%emt 0:00:55]} 13. Bxf6 {[%emt 0:01:55]} Bxf6 {[%emt 0:01:15]} 14. Nf4 {[%emt 0:01:27]} Qe8 {[%emt 0:03:04]} 15. c4 {[%emt 0:12:13]} g5 {[%emt 0:17:18]} 16. cxd5 {[%emt 0:08:18]} gxf4 {[%emt 0:07:48]} 17. dxc6 {[%emt 0:00:13]} bxc6 {[%emt 0:00:41]} 18. Bc4 {[%emt 0:00:23]} fxe3 {[%emt 0:04:07]} 19. fxe3 {[%emt 0:00:04]} c5 {[%emt 0:09:13]} 20. Ra6 {[%emt 0:01:21]} Bc8 {[%emt 0:04:35]} 21. Ra5 {[%emt 0:02:14]} cxd4 {[%emt 0:00:28]} 22. Nxd4 {[%emt 0:01:15]} Kh8 {[%emt 0:01:09]} 23. Qf3 {[%emt 0:00:39]} Bd7 {[%emt 0:04:03]} 24. Qf4 {[%emt 0:02:04]} Kh7 {[%emt 0:02:53]} 25. Nf3 {[%emt 0:09:01]} Qd8 {[%emt 0:03:32]} 26. Ra6 {[%emt 0:00:46]} Bc8 {[%emt 0:02:09]} 27. Rd6 {[%emt 0:05:48]} Qe7 {[%emt 0:00:50]} 28. Rfd1 {[%emt 0:00:58]} Rg8 {[%emt 0:00:28]} 29. h3 {[%emt 0:09:37]} Rg7 {[%emt 0:00:37]} 30. Ne5 {[%emt 0:02:05]} Bg5 {[%emt 0:01:23]} 31. Qf3 {[%emt 0:00:13]} Bb7 {[%emt 0:00:46]} 32. Nc6 {[%emt 0:00:20]} Bxc6 {[%emt 0:03:44]} 33. Rxc6 {[%emt 0:00:43]} Rg6 {[%emt 0:01:09]} 34. Bxe6 {[%emt 0:02:19]} Rd8 {[%emt 0:01:40]} 35. Rxd8 {[%emt 0:00:28]} Qxd8 {[%emt 0:00:22]} 36. Bxf5 {[%emt 0:00:08]} Bxe3+ {[%emt 0:00:47]} 37. Qxe3 {[%emt 0:01:03]} 1-0